[Event "Baku Open 2024"]
[Site "Baku"]
[Date "2024.07.06"]
[Round "8.40"]
[White "Alizada, Pasham"]
[Black "Nurgali, Nazerke"]
[Result "1-0"]
[ECO "B45"]
[WhiteElo "2070"]
[BlackElo "2252"]
[Annotator "TA"]
[PlyCount "81"]
[EventDate "2024.06.29"]
[EventType "swiss"]
[EventCountry "AZE"]
[SourceTitle "playchess.com"]
[Source "ChessBase"]
[SourceQuality "1"]
[TimeControl "5400+30"]

{[%evp 21,81,39,46,0,0,-7,28,16,83,83,138,141,138,136,150,142,129,129,146,168,169,156,201,142,151,138,141,127,129,145,131,145,206,206,240,236,218,212,224,211,206,195,212,204,370,229,352,345,342,341,599,580,598,600,853,864,864,709,853,852,840,785]} 1. e4 {[%emt 0:11:52]} c5 {[%emt 0:00:37]} 2. Nf3 {[%emt 0:01:56]} e6 {[%emt 0:00:27]} 3. d4 {[%emt 0:00:02]} cxd4 {[%emt 0:00:17]} 4. Nxd4 {[%emt 0:00:04]} Nf6 {[%emt 0:00:10]} 5. Nc3 {[%emt 0:00:17]} Nc6 {[%emt 0:00:31]} 6. Nxc6 {[%emt 0:01:29]} bxc6 {[%emt 0:00:14]} 7. e5 {[%emt 0:00:02]} Nd5 {[%emt 0:00:13]} 8. Ne4 {[%emt 0:00:02]} Qc7 {[%emt 0:01:13]} 9. f4 {[%emt 0:00:04]} Qb6 {[%emt 0:00:19]} 10. c4 {[%emt 0:00:03]} Ne3 {[%emt 0:03:58]} 11. Qd3 {[%emt 0:00:55]} Nf5 {[%emt 0:01:34]} 12. b3 {[%emt 0:03:04]} (12. Bd2 $14) 12... h5 $1 $11 {[%emt 0:03:46]} 13. g3 {[%emt 0:00:17] Aktives Gegenspiel!} Bb4+ {[%emt 0:05:11]} 14. Bd2 {[%emt 0:00:26] Weiß hat minimalen Vorteil.} Rb8 {[%emt 0:04:53]} (14... Bb7 $11 {hält das Gleichgewicht.}) 15. Bh3 $16 {[%emt 0:09:03]} Nd4 {[%emt 0:10:09]} (15... Ba3 $142) 16. Bxb4 {[%emt 0:02:57]} Qxb4+ {[%emt 0:00:10]} 17. Kf2 {[%emt 0:02:39]} c5 {[%emt 0:03:05] [#]} 18. Rhd1 $1 {[%emt 0:02:25]} ({Viel schwächer wäre} 18. Nd6+ $6 Ke7 $11) 18... h4 {[%emt 0:07:03]} 19. g4 {[%emt 0:02:36]} O-O {[%emt 0:06:04]} 20. Ng5 {[%emt 0:08:48]} g6 {[%emt 0:00:48] [#]} 21. Ne4 $1 {[%emt 0:00:02]} a5 {[%emt 0:10:11]} 22. Rab1 {[%emt 0:05:19]} Qb6 {[%emt 0:04:07]} 23. Nxc5 {[%emt 0:06:04]} Nf5 {[%emt 0:13:53]} 24. gxf5 {[%emt 0:02:17]} Qxc5+ {[%emt 0:00:04]} 25. Qe3 {[%emt 0:02:58]} Qxe3+ {[%emt 0:02:43]} 26. Kxe3 {[%emt 0:00:24] f6 ist eine echte Drohung.} exf5 {[%emt 0:00:17]} (26... gxf5 $16 27. Rg1+ Kh7) 27. Rd6 $18 {[%emt 0:01:48]} Kg7 {[%emt 0:00:54]} 28. Kd4 {[%emt 0:01:46]} Rd8 {[%emt 0:02:05]} 29. a3 {[%emt 0:18:36]} Bb7 {[%emt 0:00:55]} 30. Bf1 {[%emt 0:00:58]} Kf8 {[%emt 0:01:01]} 31. c5 {[%emt 0:03:46]} Ke7 {[%emt 0:00:41]} 32. Bc4 {[%emt 0:00:41]} h3 $2 {[%emt 0:04:42]} (32... Be4 33. Rg1 Rdc8) 33. Rd1 {[%emt 0:01:11]} Rh8 {[%emt 0:03:05]} (33... Bf3 {war nötig.} 34. Rd2 Be4) 34. Kc3 {[%emt 0:02:04]} Bc6 {[%emt 0:00:43]} 35. Rf6 {[%emt 0:00:19]} Rbf8 {[%emt 0:02:56]} (35... Rh7 36. b4 Ke8 37. bxa5 Rh4) 36. b4 {[%emt 0:02:42][%cal Bb3b4,Bb4b5][%mdl 32] Weiß steht klar auf Gewinn.} ({Nicht} 36. Rdd6 Rh4 $16) 36... Ba4 {[%emt 0:02:44]} 37. Rd4 {[%emt 0:01:17]} Rh7 {[%emt 0:00:30]} 38. Ra6 {[%emt 0:01:26]} Rhh8 {[%emt 0:02:16]} 39. b5 {[%emt 0:01:02]} Ra8 {[%emt 0:00:45] Lässt Ra7 nicht zu} 40. Rxa8 {[%emt 0:00:35]} Rxa8 {[%emt 0:00:08]} 41. Bf1 {[%emt 0:01:01] Gewichteter Fehlerwert: Weiß=0.11 (sehr präzise) /Schwarz=0.39.  Fehler:       	---       	Schwarz=6     Ungenau:       	Weiß=1     	Schwarz=2     OK:         	Weiß=15    	Schwarz=7     Bester:       	Weiß=2     	Schwarz=2     Stark:        	Weiß=2     	Schwarz=1} 1-0

[Event "Baku Open 2024"]
[Site "Baku"]
[Date "2024.07.06"]
[Round "8.41"]
[White "Wagh Suyog"]
[Black "Ravshanov, Sheralijon"]
[Result "1/2-1/2"]
[ECO "D75"]
[WhiteElo "2230"]
[BlackElo "2072"]
[Annotator "TA"]
[PlyCount "42"]
[EventDate "2024.06.29"]
[EventType "swiss"]
[EventCountry "AZE"]
[SourceTitle "playchess.com"]
[Source "ChessBase"]
[SourceQuality "1"]
[TimeControl "5400+30"]

{[%evp 18,42,36,13,27,12,6,9,22,0,0,0,0,-4,0,-74,-68,-64,0,0,-8,-16,0,0,0,-3,0]} 1. d4 {[%emt 0:00:29]} Nf6 {[%emt 0:00:36]} 2. c4 {[%emt 0:00:05]} g6 {[%emt 0:00:34]} 3. Nf3 {[%emt 0:00:04]} Bg7 {[%emt 0:00:30]} 4. g3 {[%emt 0:00:05]} d5 {[%emt 0:00:36]} 5. cxd5 {[%emt 0:00:04]} Nxd5 {[%emt 0:02:25]} 6. Bg2 {[%emt 0:00:02]} O-O {[%emt 0:00:27]} 7. O-O {[%emt 0:00:03]} c5 {[%emt 0:00:41]} 8. e4 {[%emt 0:00:25]} Nf6 {[%emt 0:00:29]} 9. e5 {[%emt 0:00:27]} Nd5 {[%emt 0:00:38]} 10. dxc5 {[%emt 0:01:16]} Na6 {[%emt 0:00:34][%cal Bb8a6,Ba6c5,Bc5e6][%mdl 32]} 11. a3 {[%emt 0:11:48]} Nxc5 {[%emt 0:07:35]} 12. b4 {[%emt 0:00:30]} Ne6 {[%emt 0:01:39]} 13. Bb2 {[%emt 0:00:32]} Nb6 {[%emt 0:00:49]} 14. Qb3 {[%emt 0:05:30]} Bd7 {[%emt 0:03:12]} 15. Nc3 {[%emt 0:00:18] Repels Ba4} Bc6 {[%emt 0:03:47]} 16. Qa2 {[%emt 0:24:28]} (16. Rfd1 $11 Qc7 17. a4) 16... Qd3 $17 {[%emt 0:17:17]} 17. Rfe1 {[%emt 0:19:20]} Bxf3 {[%emt 0:05:28]} (17... Rad8 $15 18. Nh4 Bxg2 19. Kxg2 Qc4) 18. Re3 $11 {[%emt 0:00:11] The position is equal.} Qc4 {[%emt 0:00:08]} 19. Bxf3 {[%emt 0:01:31]} Qxa2 {[%emt 0:00:08]} 20. Rxa2 {[%emt 0:00:07]} Nc4 {[%emt 0:00:05][%csl LRe3,LRe5] Excellent horsemanship.} 21. Re1 {[%emt 0:01:27]} Nxe5 {[%emt 0:19:15] Weighted Error Value: White=0.13 (very precise) /Black=0.11 (very precise) .  Mistake:       	White=1     	Black=1      OK:         	White=5     	Black=4      Best:        	White=1     	Black=1} 1/2-1/2

[Event "Baku Open 2024"]
[Site "Baku"]
[Date "2024.07.06"]
[Round "8.42"]
[White "Lyutsinger, Iren"]
[Black "Bizhigitov, Zhangir"]
[Result "0-1"]
[ECO "C70"]
[WhiteElo "2069"]
[BlackElo "2212"]
[Annotator "TA"]
[PlyCount "100"]
[EventDate "2024.06.29"]
[EventType "swiss"]
[EventCountry "AZE"]
[SourceTitle "playchess.com"]
[Source "ChessBase"]
[SourceQuality "1"]
[TimeControl "5400+30"]

{[%evp 9,100,35,27,26,22,17,34,5,0,-51,-41,-41,-41,-33,-47,-60,-49,-37,-33,-54,-55,-108,-109,-143,-121,-113,0,-150,-165,-150,-162,-159,-162,-209,-224,-216,-230,-295,-286,-343,-327,-532,-510,-562,-529,-550,-594,-598,-553,-565,-569,-581,-576,-584,-550,-532,-514,-827,-815,-1859,-1764,-1467,-475,-475,-471,-433,-410,-591,-661,-887,-812,-918,-916,-904,-878,-845,-843,-1071,-934,-807,-733,-1373,-1366,-4137,-2953,-2174,-2528,-4133,-3673,-4821,-2474,-2032,-1830]} 1. e4 {[%emt 0:00:02]} e5 {[%emt 0:01:48]} 2. Nf3 {[%emt 0:00:04]} Nc6 {[%emt 0:00:08]} 3. Bb5 {[%emt 0:00:05]} a6 {[%emt 0:01:18]} 4. Ba4 {[%emt 0:00:05]} Nge7 {[%emt 0:00:19]} 5. Nc3 {[%emt 0:00:50]} Ng6 {[%emt 0:01:10]} 6. h4 {[%emt 0:00:09]} h5 {[%emt 0:03:22]} 7. d4 {[%emt 0:04:17]} exd4 {[%emt 0:13:21]} 8. Nd5 {[%emt 0:04:45][%cal Oe1g1] White is slightly better.} Bc5 {[%emt 0:13:36]} 9. O-O {[%emt 0:08:47]} (9. a3 $11) 9... b5 $15 {[%emt 0:05:32]} 10. Bb3 {[%emt 0:05:28]} d6 {[%emt 0:00:46][%cal Oc8g4]} 11. a4 {[%emt 0:00:50]} Rb8 {[%emt 0:03:21]} 12. axb5 {[%emt 0:01:17]} axb5 {[%emt 0:00:29][%cal Oc8g4]} 13. Bg5 {[%emt 0:18:18]} f6 {[%emt 0:01:01]} 14. Bf4 {[%emt 0:05:58]} Bg4 {[%emt 0:05:32]} 15. Qd3 {[%emt 0:01:59]} (15. Bg3 $15) 15... Nce5 $17 {[%emt 0:08:49]} 16. Bxe5 {[%emt 0:04:06]} fxe5 {[%emt 0:07:56]} 17. Ng5 {[%emt 0:05:48]} c6 {[%emt 0:06:09]} ({Better is} 17... Nxh4 $17 18. f3 (18. f4 $2 exf4 19. g3 Qxg5 $19) 18... Bc8 (18... Qxg5 19. fxg4 Qd8 20. gxh5 $16)) 18. Nc7+ {[%emt 0:04:04] Black converts the advantage convincingly.} Qxc7 {[%emt 0:04:54]} 19. Bf7+ {[%emt 0:00:01] [#]} Qxf7 $1 {[%emt 0:01:47]} 20. Nxf7 {[%emt 0:00:10]} Kxf7 {[%emt 0:00:04]} 21. g3 {[%emt 0:02:19]} (21. Ra6 $142) 21... Rhf8 $19 {[%emt 0:02:16]} 22. f3 {[%emt 0:03:54]} Be6 {[%emt 0:00:27]} 23. b3 {[%emt 0:00:27]} Kg8 {[%emt 0:01:05]} 24. Ra6 {[%emt 0:00:19]} Ne7 {[%emt 0:01:10]} 25. f4 $2 {[%emt 0:01:00]} (25. Qd2 {was called for.} d3+ 26. Kg2 dxc2 27. Qxc2) 25... exf4 {[%emt 0:00:28]} 26. gxf4 {[%emt 0:01:00]} d5 {[%emt 0:06:18]} 27. b4 {[%emt 0:08:18]} dxe4 {[%emt 0:00:26]} (27... Bxb4 28. Qxd4 dxe4 29. Qxb4 $11) 28. Qxe4 {[%emt 0:00:20] [#]} Bd5 {[%emt 0:00:06]} (28... Bxb4 $2 29. Qxe6+ Kh8 30. Qe4 $18) 29. Qe5 {[%emt 0:00:18]} Bxb4 {[%emt 0:00:24]} 30. f5 {[%emt 0:00:58] [#]} d3 $1 {[%emt 0:06:19]} 31. cxd3 {[%emt 0:01:21]} Rbe8 {[%emt 0:00:48]} 32. f6 {[%emt 0:04:57]} Ng6 {[%emt 0:00:32][%csl LRe5,LRh4]} (32... Bc5+ 33. d4 Ng6 (33... Nf5 34. f7+ Bxf7 35. Qxc5 $11) 34. f7+ (34. Qxh5 $2 Bxd4+ 35. Kh2 Bxf6 $19) 34... Bxf7 35. Qxc5 $11) 33. Qd4 {[%emt 0:02:58]} (33. f7+ $142 Bxf7 (33... Rxf7 $2 {loses.} 34. Qxe8+ Rf8 35. Rxf8+ Nxf8 36. Rxc6 $18) 34. Qb2 Bc5+ 35. d4) 33... Bd2 {[%emt 0:01:14] ...Be3+ would now be deadly.} 34. Kh2 {[%emt 0:02:41]} Re2+ {[%emt 0:00:26]} 35. Rf2 {[%emt 0:00:06]} Be3 {[%emt 0:00:34]} (35... Bf4+ $142 36. Kh3 Re3+ 37. Qxe3 Bxe3 38. f7+ Bxf7 (38... Rxf7 $2 39. Ra8+ Kh7 40. Rxf7 $19)) 36. Qxd5+ {[%emt 0:00:30]} cxd5 {[%emt 0:00:04]} 37. Rxe2 {[%emt 0:00:28]} Bf4+ {[%emt 0:02:34]} (37... Rxf6 38. Rxf6 gxf6 39. Rxe3 $11) 38. Kh1 {[%emt 0:00:54]} (38. Kg1 $142 Rxf6 (38... Nxh4 $2 39. fxg7 Kxg7 40. Rb6 $19) 39. Rxf6 gxf6 40. Kf2) 38... Rxf6 {[%emt 0:00:15] Black is clearly winning.} 39. Rxf6 {[%emt 0:01:13]} gxf6 {[%emt 0:00:05]} 40. Rb2 {[%emt 0:00:06]} Kf7 {[%emt 0:00:21]} 41. Rxb5 {[%emt 0:00:10]} Ke6 {[%emt 0:00:04]} (41... Nxh4 42. Rxd5 Bg5 43. Kg1 $19) 42. Rb4 {[%emt 0:00:30]} Bd6 {[%emt 0:02:05]} 43. Ra4 {[%emt 0:00:12]} Nf4 {[%emt 0:00:11]} 44. d4 {[%emt 0:00:34]} Ng6 {[%emt 0:00:06]} 45. Ra8 {[%emt 0:00:52]} Nxh4 {[%emt 0:00:07]} 46. Rh8 {[%emt 0:00:06]} Nf5 {[%emt 0:00:05]} 47. Kg2 {[%emt 0:00:05]} h4 {[%emt 0:00:13][%cal Od6g3] And now ...Bg3! would win.} 48. Re8+ {[%emt 0:00:55]} Kd7 {[%emt 0:00:12]} 49. Rh8 {[%emt 0:00:16]} Bg3 {[%emt 0:00:07]} 50. Rf8 {[%emt 0:00:12]} Ke7 {[%emt 0:00:06] Weighted Error Value: White=0.73/Black=0.17 (very precise) .  Mistake:       	White=7     	Black=1      Inaccurate:     	White=4     	---        OK:         	White=9     	Black=18     Best:        	White=1     	Black=4      Brilliant:      	---       	Black=1} 0-1

[Event "Baku Open 2024"]
[Site "Baku"]
[Date "2024.07.06"]
[Round "8.43"]
[White "Huseynova, Lala"]
[Black "Vrashank Chouhan"]
[Result "0-1"]
[ECO "C02"]
[WhiteElo "2036"]
[BlackElo "2209"]
[Annotator "RC"]
[PlyCount "58"]
[EventDate "2024.06.29"]
[EventType "swiss"]
[EventCountry "AZE"]
[SourceTitle "playchess.com"]
[Source "ChessBase"]
[SourceQuality "1"]
[TimeControl "5400+30"]

1. e4 {[%emt 0:03:53]} e6 {[%emt 0:00:06]} 2. d4 {[%emt 0:00:35]} d5 {[%emt 0:00:06]} 3. e5 {[%emt 0:00:14]} c5 {[%emt 0:00:05]} 4. c3 {[%emt 0:00:04]} Nc6 {[%emt 0:00:04]} 5. Nf3 {[%emt 0:00:11]} Bd7 {[%emt 0:00:07]} 6. Na3 {[%emt 0:00:37]} Nge7 {[%emt 0:01:02]} 7. Nc2 {[%emt 0:03:17]} cxd4 {[%emt 0:02:11]} 8. cxd4 {[%emt 0:00:53]} Nf5 {[%emt 0:00:06]} 9. Bd3 {[%emt 0:01:06]} Be7 {[%emt 0:00:10]} 10. O-O {[%emt 0:04:41]} O-O {[%emt 0:00:56]} 11. g4 {[%emt 0:04:39]} Nh4 {[%emt 0:02:58]} 12. Nxh4 {[%emt 0:00:48]} Bxh4 {[%emt 0:00:07]} 13. g5 {[%emt 0:04:33]} Bxg5 {[%emt 0:03:17]} 14. Qh5 {[%emt 0:03:01]} h6 {[%emt 0:09:05]} 15. f4 {[%emt 0:00:58]} Bh4 {[%emt 0:17:55]} 16. Kh1 {[%emt 0:06:38]} f5 {[%emt 0:02:24]} 17. exf6 {[%emt 0:09:50]} Qxf6 {[%emt 0:00:05]} 18. Be3 {[%emt 0:08:25]} Ne7 {[%emt 0:03:26]} 19. Rg1 {[%emt 0:12:49]} Be8 {[%emt 0:02:38]} 20. Qg4 {[%emt 0:04:57]} Nf5 {[%emt 0:01:41]} 21. Bd2 {[%emt 0:01:56]} Rc8 {[%emt 0:06:07]} 22. Qg2 {[%emt 0:07:51]} Rf7 {[%emt 0:05:37]} 23. Ne3 {[%emt 0:06:10]} Qxd4 {[%emt 0:04:31]} 24. Nxf5 {[%emt 0:03:16]} exf5 {[%emt 0:00:19]} 25. Qe2 {[%emt 0:01:03]} Qf6 {[%emt 0:04:36]} 26. h3 {[%emt 0:05:48]} Bc6 {[%emt 0:01:45]} 27. Qh5 {[%emt 0:01:04]} Qd4 {[%emt 0:06:26]} 28. Qe2 {[%emt 0:02:56]} Re8 {[%emt 0:00:35]} 29. Bc3 {[%emt 0:01:47]} Qxf4 {[%emt 0:00:20]} 0-1

[Event "Baku Open 2024"]
[Site "Baku"]
[Date "2024.07.06"]
[Round "8.44"]
[White "Ismayil, Malak"]
[Black "Kheerthi Ganta"]
[Result "1-0"]
[ECO "C55"]
[WhiteElo "2165"]
[BlackElo "1987"]
[Annotator "RC"]
[PlyCount "87"]
[EventDate "2024.06.29"]
[EventType "swiss"]
[EventCountry "AZE"]
[SourceTitle "playchess.com"]
[Source "ChessBase"]
[SourceQuality "1"]
[TimeControl "5400+30"]

1. e4 {[%emt 0:00:06]} e5 {[%emt 0:00:33]} 2. Nf3 {[%emt 0:00:03]} Nc6 {[%emt 0:00:16]} 3. Bc4 {[%emt 0:00:04]} Nf6 {[%emt 0:00:23]} 4. d3 {[%emt 0:00:20]} h6 {[%emt 0:00:11]} 5. Nc3 {[%emt 0:00:04]} d6 {[%emt 0:01:01]} 6. h3 {[%emt 0:03:06]} Na5 {[%emt 0:01:03]} 7. Be3 {[%emt 0:01:28]} Be7 {[%emt 0:01:11]} 8. Qd2 {[%emt 0:00:41]} Nxc4 {[%emt 0:01:58]} 9. dxc4 {[%emt 0:00:04]} c6 {[%emt 0:00:12]} 10. a3 {[%emt 0:12:58]} O-O {[%emt 0:00:58]} 11. O-O {[%emt 0:10:44]} Be6 {[%emt 0:00:11]} 12. Qe2 {[%emt 0:00:47]} Qc7 {[%emt 0:01:55]} 13. Nd2 {[%emt 0:00:39]} d5 {[%emt 0:03:10]} 14. cxd5 {[%emt 0:02:36]} cxd5 {[%emt 0:02:59]} 15. exd5 {[%emt 0:00:11]} Nxd5 {[%emt 0:00:21]} 16. Nxd5 {[%emt 0:00:40]} Bxd5 {[%emt 0:00:15]} 17. c4 {[%emt 0:00:04]} Bc6 {[%emt 0:01:25]} 18. b4 {[%emt 0:02:38]} b6 {[%emt 0:00:11]} 19. Rfc1 {[%emt 0:00:18]} f5 {[%emt 0:02:35]} 20. c5 {[%emt 0:23:41]} b5 {[%emt 0:01:14]} 21. f3 {[%emt 0:00:10]} a6 {[%emt 0:02:27]} 22. Nb3 {[%emt 0:00:32]} Bf6 {[%emt 0:02:08]} 23. Rab1 {[%emt 0:00:29]} e4 {[%emt 0:00:55]} 24. f4 {[%emt 0:00:07]} Rad8 {[%emt 0:00:59]} 25. Rd1 {[%emt 0:01:23]} Bd5 {[%emt 0:03:01]} 26. Na5 {[%emt 0:00:09]} Bf7 {[%emt 0:03:00]} 27. Qf2 {[%emt 0:04:54]} Rxd1+ {[%emt 0:03:54]} 28. Rxd1 {[%emt 0:00:03]} Rd8 {[%emt 0:00:09]} 29. Rc1 {[%emt 0:01:06]} Rd3 {[%emt 0:01:32]} 30. c6 {[%emt 0:00:22]} Bd8 {[%emt 0:00:55]} 31. Nb7 {[%emt 0:00:40]} Bc4 {[%emt 0:02:08]} 32. Nxd8 {[%emt 0:04:57]} Qxd8 {[%emt 0:00:10]} 33. Bb6 {[%emt 0:00:03]} Qc8 {[%emt 0:00:55]} 34. c7 {[%emt 0:00:06]} e3 {[%emt 0:00:37]} 35. Qh4 {[%emt 0:03:51]} Kh7 {[%emt 0:04:27]} 36. Qd8 {[%emt 0:02:24]} Rxd8 {[%emt 0:00:08]} 37. cxd8=Q {[%emt 0:00:08]} Qe6 {[%emt 0:00:03]} 38. Qd4 {[%emt 0:01:01]} e2 {[%emt 0:00:09]} 39. Qe3 {[%emt 0:00:25]} Qd6 {[%emt 0:01:32]} 40. Bd4 {[%emt 0:00:13]} Qd7 {[%emt 0:01:10]} 41. Kf2 {[%emt 0:01:09]} Qd5 {[%emt 0:00:22]} 42. Qe5 {[%emt 0:00:49]} Qf7 {[%emt 0:00:09]} 43. Rxc4 {[%emt 0:01:51]} bxc4 {[%emt 0:00:09]} 44. Kxe2 {[%emt 0:00:03]} 1-0